Cogmind - Beta 15 @@@ ROGUE MODE // 2025.06.01 @ 14:14:56 Player: Nisakard Result: Destroyed by Y-45 Defender with Beam Rifle Performance ------------- Evolutions (0) 0 Regions Visited (3) 600 Robots Destroyed (42) 210 Value Destroyed (1074) 1074 Prototype IDs (2) 40 Alien Tech Used (0) 0 Bonus (0) 0 TOTAL SCORE: 1924 Bonus ------- None Cogmind --------- Core Integrity 0/250 Matter 275/300 Energy 180/250 System Corruption 0% Temperature Cool (9) Movement Treading (320) Ox2 Location -9/Recycling Parts ------- > --- POWER (1) -------- Ion Engine > --- PROPULSION (2) --- Light Treads > --- UTILITY (2) ------ Large Storage Unit Signal Interpreter > --- WEAPON (2) ------- Subdweller Beam Cannon Subdweller Beam Cannon > --- INVENTORY (15) --- Ion Engine Improved Treads Improved Treads Subdweller Monowheel Huge Storage Unit High-capacity Matter Pod (200) Makeshift Hacking Suite Recalibrator Subdweller Laser Mini Grenade Launcher Mini Grenade Launcher Mini Grenade Launcher Mini Grenade Launcher Datajack Peak State ------------ > --- POWER ------------ Ion Engine > --- PROPULSION ------- Improved Treads Improved Treads > --- UTILITY ---------- Large Storage Unit Recalibrator > --- WEAPON ----------- EM Shotgun EM Shotgun > --- INVENTORY -------- Ion Engine Light Treads Light Treads Improved Treads Improved Treads Huge Storage Unit High-capacity Matter Pod EM Shotgun EM Shotgun Mini Grenade Launcher Mini Grenade Launcher Mini Grenade Launcher Mini Grenade Launcher Datajack [Rating: 16] Favorites ----------- Power Ion Engine Engine Ion Engine Propulsion Improved Treads Treads Improved Treads Utility Large Storage Unit Device Improved Terrain Scanner Storage Large Storage Unit Processor Signal Interpreter Weapon Mini Grenade Launcher Energy Gun EM Shotgun Energy Cannon Subdweller Beam Cannon Launcher Mini Grenade Launcher Special Melee Weapon Datajack Build | -11 -10 -10 -9 ------- Run | Yrd Mat Sub Rec Slots Evolved . | . . . . Power . | . . . . Propulsion . | . . . . Utility . | . . . . Weapon . | . . . . Parts Attached 27 | 10 12 2 3 Power 3 | 1 1 1 . Engine 3 | 1 1 1 . Core . | . . . . Reactor . | . . . . Propulsion 4 | 2 2 . . Treads 4 | 2 2 . . Leg . | . . . . Wheel . | . . . . Hover . | . . . . Flight . | . . . . Utility 7 | 4 3 . . Device 3 | 2 1 . . Storage 3 | 2 1 . . Processor 1 | . 1 . . Hackware . | . . . . Protection . | . . . . Artifact . | . . . . Weapon 13 | 3 6 1 3 Energy Gun 7 | 3 4 . . Energy Cannon 2 | . . . 2 Ballistic Gun . | . . . . Ballistic Cannon . | . . . . Launcher 3 | . 2 1 . Special Weapon . | . . . . Impact Weapon . | . . . . Slashing Weapon . | . . . . Piercing Weapon . | . . . . Special Melee Weapon 1 | . . . 1 Unidentified Prototypes . | . . . . Parts Lost 2 | . . 1 1 Power . | . . . . Propulsion 2 | . . 1 1 Utility . | . . . . Weapon . | . . . . Highest Loss Streak 1 | . . 1 1 To Critical Strikes . | . . . . Average Backups 12 | 2 11 14 14 Power . | . 1 1 1 Propulsion 3 | 1 3 4 3 Utility 2 | . 1 3 4 Weapon 4 | . 4 4 5 Tool/Special . | . . . . Unused Backups 12 | . 4 . 8 Power . | . . . . Propulsion 5 | . 2 . 3 Utility 4 | . 1 . 3 Weapon 3 | . 1 . 2 Tool/Special . | . . . . Average Slot Usage (%) 94 | . 99 90 100 Engine 14 | . 14 14 14 Treads 23 | . 27 19 28 Device 5 | . 12 . . Storage 14 | . 14 14 14 Processor 8 | . 1 14 14 Energy Gun 13 | . 26 2 . Launcher 14 | . 1 25 24 Peak Build Rating 16 | 9 16 13 12 Average Rating 12 | 5 13 11 11 On Entrance 8 | . 9 13 12 Naked Turns . | . . . . Heaviest Build 32 | 19 32 31 27 Greatest Support 46 | 40 46 46 43 Greatest Overweight (x) 1 | . 1 1 . Average Overweight (x) . | . . . . Largest Inventory Capacity 15 | 8 15 15 15 Average Capacity 14 | 7 13 15 15 Most Carried 15 | 4 15 15 14 Average Carried 12 | 2 11 14 14 Final Capacity 15 | 8 15 15 15 Final Carried 14 | 4 13 14 14 Class Distribution -------------------- 100% | Mutant Dominant Class ---------------- Mutant | -10/Materials Mutant | -10/Subcaves Mutant | -9/Recycling Resources | -11 -10 -10 -9 ----------- Run | Yrd Mat Sub Rec Matter Collected 1141 | 234 432 201 274 Remotely 189 | 189 . . . Salvage Created 1065 | 64 707 294 . Parts 80 | 4 41 35 . Haulers Intercepted 1 | . 1 . . Recyclers Shooed . | . . . . Parts Field Recycled . | . . . . Retrieved Matter . | . . . . Parts Self-Destructed 11 | . . 11 . Prevented . | . . . . Kills | -11 -10 -10 -9 ------- Run | Yrd Mat Sub Rec Combat Hostiles Destroyed 31 | . 15 16 . Guns 12 | . 12 . . AOE 19 | . 3 16 . Classes Destroyed 11 | 2 7 2 . Worker 1 | . 1 . . Builder 1 | . 1 . . Tunneler 1 | 1 . . . Hauler 1 | . 1 . . Recycler 1 | 1 . . . Mechanic 1 | . 1 . . Turret 2 | . . 2 . Watcher 3 | . 3 . . Swarmer 10 | . 6 4 . Grunt 9 | . 9 . . Subdweller 12 | . . 12 . Best Kill Streak 6 | 1 4 6 . Combat Bots Only 4 | . 3 4 . Max Kills in Single Turn 5 | 1 2 5 . Gunslinging 1 | . 1 . . Exploded 4 | . 1 4 . Melee . | . . . . Uniques/NPCs Destroyed . | . . . . Combat | -11 -10 -10 -9 -------- Run | Yrd Mat Sub Rec Hostile Shots Fired 95 | . 50 40 5 Missed 29 | . 11 17 1 Hits 66 | . 39 23 4 Projectile 66 | . 39 23 4 Critical Strikes 2 | . 1 1 . Damage Taken 1018 | . 490 465 63 Core 257 | . 127 85 45 Absorbed by Shields . | . . . . Regen/Repaired (Parts) 69 | . 69 . . Core Remaining (%) 100 | 100 . . . Volleys Fired 70 | 3 43 23 1 Largest 2 | 2 2 2 2 Hottest 160 | 80 90 90 160 Shots Fired 138 | 4 86 46 2 Gun 90 | 4 84 2 . Cannon 2 | . . . 2 Launcher 46 | . 2 44 . Special . | . . . . Kinetic . | . . . . Thermal 4 | 2 . . 2 Explosive 46 | . 2 44 . Electromagnetic 88 | 2 84 2 . Robot Hit Streak 9 | 2 9 8 9 Robot Miss Streak 4 | 1 4 1 . Penetration Max . | . . . . Secondary Targets 2 | . 2 . . Max Gunslinging Chain 1 | . 1 . . Shots Hit Robots 81 | 3 58 15 5 Core Hits 66 | 3 36 27 . Critical Kills . | . . . . Critical Parts Destroyed . | . . . . Critical Strikes . | . . . . Melee Attacks 3 | . . . 3 Impact . | . . . . Slashing . | . . . . Piercing . | . . . . Sneak Attacks 2 | . . . 2 Combat Hostiles 2 | . . . 2 Follow-up Attacks . | . . . . Damage Inflicted 3006 | 35 1112 1806 53 Guns 881 | 35 821 25 . Cannons 53 | . . . 53 Explosions 2064 | . 283 1781 . Melee . | . . . . Ramming 8 | . 8 . . Kinetic . | . . . . Thermal 284 | 22 209 . 53 Explosive 1855 | . 74 1781 . Electromagnetic 859 | 13 821 25 . Impact . | . . . . Slashing . | . . . . Piercing . | . . . . Highest Corruption . | . . . . Average Corruption . | . . . . Corruption Purged . | . . . . Corruption Blocked . | . . . . Overload Shots . | . . . . Overflow Damage 6 | . . 6 . Projectiles . | . . . . Explosions 6 | . . 6 . Melee . | . . . . Knockbacks . | . . . . Impact . | . . . . Kinetic . | . . . . Secondary . | . . . . Self-Inflicted Damage 125 | . 56 69 . Shots 4 | . 1 3 . Rammed 1 | . 1 . . Targets Rammed 1 | . 1 . . Kicked . | . . . . Crushed . | . . . . Highest Temperature 232 | 18 232 . . Average Temperature 67 | 12 68 . . Received Heat Transfer 261 | . 207 36 18 Siege Activations . | . . . . Martial Activations . | . . . . Shielding Activations . | . . . . Robots Disrupted . | . . . . Combat Hostiles . | . . . . Robots Corrupted . | . . . . Combat Hostiles . | . . . . Parts Fried 1 | . 1 . . Impact Corruptions . | . . . . Robots Melted . | . . . . Combat Hostiles . | . . . . Parts Melted . | . . . . Heat Transferred 474 | 50 350 . 74 Parts Sabotaged . | . . . . Parts Stolen . | . . . . Parts Stripped . | . . . . Power Chain Reactions 3 | . 3 . . Alert | -11 -10 -10 -9 ------- Run | Yrd Mat Sub Rec Maximum Alert Level 1 | . 1 . . Low Security (%) 86 | 100 84 . 100 Level 1 13 | . 15 . . Level 2 . | . . . . Level 3 . | . . . . Level 4 . | . . . . Level 5 . | . . . . High Security . | . . . . Max Security . | . . . . Peak Influence 230 | 5 230 . . Initial . | . . . . Average 73 | . 81 . . Influence Increases 673 | 10 513 150 . Destroy 0b10 Robot/C 420 | . 300 120 . Destroy 0b10 Robot/NC 45 | 10 35 . . Destroy Leader 78 | . 78 . . Successful Hack 19 | . 19 . . Disable Machine 30 | . 30 . . Destroy Structure 21 | . 21 . . Lose Combat Pursuer 60 | . 30 30 . Influence Decreases 673 | 10 327 336 . Entered New Map 90 | . . 90 . Time Decay 537 | 10 281 246 . Purge Threat 46 | . 46 . . Squads Dispatched 3 | . 3 . . Investigation 2 | . 2 . . Extermination . | . . . . Reinforcement 1 | . 1 . . Assault . | . . . . Garrison . | . . . . Intercept . | . . . . Searches Triggered . | . . . . Construction Impeded . | . . . . Haulers Reinforced . | . . . . Active Scanning Responses . | . . . . Cargo Convoy Interrupts . | . . . . Stealth | -11 -10 -10 -9 --------- Run | Yrd Mat Sub Rec Distress Signals 2 | . 2 . . Communications Jammed . | . . . . Distress Signals . | . . . . Times Spotted 41 | . 24 16 1 Peak Tracking Total 5 | . 5 5 1 Tactical Retreats 2 | . 1 1 . Traps | -11 -10 -10 -9 ------- Run | Yrd Mat Sub Rec Traps Triggered 2 | . 2 . . Indirectly . | . . . . Trap Hack Attempts . | . . . . Triggered . | . . . . Disarmed . | . . . . Reprogrammed . | . . . . Reused . | . . . . Traps Extracted . | . . . . Installed . | . . . . Triggered . | . . . . Machines | -11 -10 -10 -9 ---------- Run | Yrd Mat Sub Rec Machines Disabled 6 | . 2 4 . Max in Single Turn 2 | . 1 2 . Machines Repaired . | . . . . Machines Dismantled . | . . . . Machines Sabotaged . | . . . . Overloaded Fab Kills . | . . . . Hacking | -11 -10 -10 -9 --------- Run | Yrd Mat Sub Rec Machines Accessed 9 | . 9 . . Terminals 6 | . 6 . . Fabricators . | . . . . Repair Stations 1 | . 1 . . Recycling Units 2 | . 2 . . Scanalyzers . | . . . . Garrison Access . | . . . . Total Hacks 18 | . 18 . . Successful 11 | . 11 . . Failed 7 | . 7 . . Catastrophic 3 | . 3 . . Database Lockouts . | . . . . Manual 7 | . 7 . . Terminals 10 | . 10 . . Fabricators . | . . . . Repair Stations 3 | . 3 . . Recycling Units 5 | . 5 . . Scanalyzers . | . . . . Garrison Access . | . . . . Terminal Hacks 5 | . 5 . . Prototype ID Bank 1 | . 1 . . Terminal Index 1 | . 1 . . Alert Level 1 | . 1 . . Unreport Threat 2 | . 2 . . Fabricator Hacks . | . . . . Repair Station Hacks 3 | . 3 . . Scan Component 1 | . 1 . . Repair 1 | . 1 . . Refit 1 | . 1 . . Recycling Unit Hacks 2 | . 2 . . Report Inventory 2 | . 2 . . Scanalyzer . | . . . . Garrison Access Hacks . | . . . . Unauthorized Hacks 1 | . 1 . . Terminals . | . . . . Fabricators . | . . . . Repair Stations . | . . . . Recycling Units 1 | . 1 . . Recyclers 1 | . 1 . . Scanalyzers . | . . . . Garrison Access . | . . . . Data Cores Recovered . | . . . . Used . | . . . . Hacking Detections 7 | . 7 . . Full Trace Events . | . . . . Feedback Events . | . . . . Feedback Blocked . | . . . . Robot Schematics Acquired . | . . . . Robots Built . | . . . . Authchips . | . . . . Time . | . . . . Total Robot Build Rating . | . . . . Part Schematics Acquired . | . . . . Parts Built . | . . . . Authchips . | . . . . Time . | . . . . Total Part Build Rating . | . . . . Parts Repaired 1 | . 1 . . Time 32 | . 32 . . Parts Recycled . | . . . . Recycled Matter . | . . . . Retrieved Matter . | . . . . Retrieved Components . | . . . . Parts Scanalyzed . | . . . . Part Schematics Acquired . | . . . . Parts Damaged . | . . . . Bothacking | -11 -10 -10 -9 ------------ Run | Yrd Mat Sub Rec Used RIF Installer . | . . . . Robots Hacked . | . . . . Non-combat . | . . . . Combat . | . . . . Robot Hacks Applied . | . . . . Relay Couplers Released . | . . . . Fabnet Peak Effective % . | . . . . Robots Rewired . | . . . . Allies Hacked . | . . . . Hacks Repelled . | . . . . Allies | -11 -10 -10 -9 -------- Run | Yrd Mat Sub Rec Total Allies . | . . . . Largest Group . | . . . . Highest-Rated Group . | . . . . Highest-Rated Ally . | . . . . Total Orders . | . . . . Ally Attacks . | . . . . Total Damage . | . . . . Kills . | . . . . Allies Corrupted . | . . . . Allies Melted . | . . . . Intel | -11 -10 -10 -9 ------- Run | Yrd Mat Sub Rec Active Infowar (turns) 1011 | 13 998 . . Terrain 1011 | 13 998 . . Robot Analysis Total . | . . . . Derelict Logs Recovered . | . . . . Drone Launches . | . . . . Drone Recoveries . | . . . . Exploration | -11 -10 -10 -9 ------------- Run | Yrd Mat Sub Rec Turns Passed 3396 | 119 1496 1751 30 Spaces Moved 1540 | 60 757 710 13 Core 2 | 2 . . . Treads 1538 | 58 757 710 13 Legs . | . . . . Wheels . | . . . . Hover . | . . . . Flight . | . . . . Fastest Speed 50 | 50 160 160 160 Average Speed 181 | 156 160 205 160 Slowest Speed 240 | 160 240 240 160 Overloaded Moves . | . . . . Propulsion Burnouts . | . . . . Robots Hopped . | . . . . Potential Cave-ins . | . . . . Cave-ins Triggered . | . . . . Exploration Rate (%) 34 | 5 93 34 5 Regions Visited 3 Branch Regions 2 Pre-discovered Areas . | . . . . Known Exits Taken 2 | . 1 1 . Unknown Exits Taken 1 | 1 . . . Scrap Searched . | . . . . Spaces Dug 20 | . . 20 . Terrain Destroyed 273 | . 19 254 . Melee . | . . . . Projectile . | . . . . AOE 273 | . 19 254 . Terrain Rammed . | . . . . Walls Destroyed . | . . . . Machines Disabled . | . . . . Actions | -11 -10 -10 -9 --------- Run | Yrd Mat Sub Rec Total 2005 | 77 953 955 20 Wait 315 | . 104 211 . Move 1537 | 59 756 709 13 Hop . | . . . . Pick Up 28 | 4 19 5 . Fast Attach 9 | 8 1 . . Attach 1 | . . 1 . Detach . | . . . . Swap 22 | 2 14 3 3 Drop 19 | 1 15 3 . Fire 70 | 3 43 23 1 Melee 3 | . . . 3 Ram . | . . . . Kick . | . . . . Crush 1 | . 1 . . Escape Stasis . | . . . . Rewire . | . . . . Trap . | . . . . Miscellaneous . | . . . . Route ------- -11/Scrapyard -10/Materials (discovered 6 exits: [*Mat x3] / [*Min x2] / *Sub) -10/Subcaves (discovered 2 exits: *Mat / *Rec) -9/Recycling History --------- Turn | Location | Event 9 | -11/Scrapyard | Discovered new exit (range 15) 120 | -11/Scrapyard | Entered Materials 121 | -10/Materials | Met a group of wandering Federalists 173 | -10/Materials | Discovered new exit (range 7) 292 | -10/Materials | Discovered new exit (range 7) 318 | -10/Materials | Build established: Mutant 596 | -10/Materials | Discovered new exit (range 7) 1000 | -10/Materials | Discovered new exit (range 14) 1184 | -10/Materials | Discovered new exit (range 16) 1305 | -10/Materials | Repaired Imp. Treads 1313 | -10/Materials | Core integrity fell below 50% 1502 | -10/Materials | Discovered new exit (range 15) 1614 | -10/Materials | Identified exit to Subcaves 1616 | -10/Materials | Entered Subcaves 1617 | -10/Subcaves | Continued accompanying wandering Federalists (5) 1617 | -10/Subcaves | Approached by a straggling Scientist 1680 | -10/Subcaves | Shifting Twisted Machinery released Mak. System Shield 1684 | -10/Subcaves | Shifting Twisted Machinery released Sub. Beam Cannon 1741 | -10/Subcaves | Shifting Twisted Machinery released Shrapnel Trap 1800 | -10/Subcaves | Lost 7 allies 1834 | -10/Subcaves | Shifting Twisted Machinery released Mak. Hacking Suite 1888 | -10/Subcaves | Ambushed by Subdweller buried in earth 2039 | -10/Subcaves | Shifting Twisted Machinery released Piercing Trap 2268 | -10/Subcaves | Discovered new exit (range 10) 2297 | -10/Subcaves | Discovered new exit (range 14) 2297 | -10/Subcaves | Identified exit to Materials 2955 | -10/Subcaves | Ambushed by Subdweller buried in earth 2955 | -10/Subcaves | Ambushed by Subdweller buried in earth 2977 | -10/Subcaves | Ambushed by Subdweller buried in earth 2978 | -10/Subcaves | Core integrity fell below 20% 3194 | -10/Subcaves | Identified exit to Recycling 3367 | -10/Subcaves | Entered Recycling 3397 | -9/Recycling | Destroyed by Y-45 Defender with Beam Rifle Last Messages --------------- here" 03181_ Acquired 3 matter. 03194_ EXIT=IDENTIFIED: RECYCLING 5C-RUR(c): "I think it's somewhere northeast of here" LOCATION=RECYCLING GOAL=ESCAPE 03372_ Acquired 66 matter. 03374_ Acquired 90 matter. 03375_ Acquired 60 matter. 03377_ Acquired 58 matter. 03390_ Sneak attack on Y-45 Defender. 03390_ Y-45 Defender system offline. 03391_ Sneak attack on Y-45 Defender. 03391_ Y-45 Defender system offline. 03391_ Y-45 Defender springs to life. 03391_ Imp. Treads destroyed. 03393_ Jacked Y-45 Defender... 03393_ Command string: shutdown 03393_ No effect. Map ----- +----------------------------------------------------+ | ?????????????????????????????????????????????????? | | ?????????????????????????????????????????????????? | | ?????????????????????????????????????????????????? | | ?????????????????????????????????????????????????? | | ?????????????????????????????????????????????????? | | ?????????????????????????????????????????????????? | | ?????????????????????????????????????????????????? | | ?????????????????????????????????????????????????? | | ?????????????????????????????????????????????????? | | ?????????????????????????????????????????????????? | | ????????????????????????? ?????????????????????? | | ????????????????????????? #????????????????????? | | ????????????????????????? #????????????????????? | | ????????????????????????? #????????????????????? | | ????????????????????????? #????????????????????? | | ????????????????????????# #????????????????????? | | ????????????????????????# #????????????????????? | | ????????????????????????# #????????????????????? | | ????????????????????????# #????????????????????? | | ????????????????????????# #????????????????????? | | ????????????????????????# #????????????????????? | | ????????????????????????# +????????????????????? | | ????????????????????????# #????????????????????? | | ???????????????????????## #????????????????????? | | ???????????????????????#Y #????????????????????? | | ????????????????????????#@ #????????????????????? | | ?????????????###+######## ########?????????????? | | ?????????? #?????????????? | | ?????????? #?????????????? | | ?????????? #?????????????? | | ???????????########+#######%% ######?????????????? | | ??????????????????????????# #??????????????????? | | ??????????????????????????#####??????????????????? | | ?????????????????????????????????????????????????? | | ?????????????????????????????????????????????????? | | ?????????????????????????????????????????????????? | | ?????????????????????????????????????????????????? | | ?????????????????????????????????????????????????? | | | | | | | | | | | | | | | | | | | | | | | | | +----------------------------------------------------+ Best States ------------- Heat Dissipation 25 Energy Generation 10 Energy Capacity 250 Matter Stores 300 Matter Capacity 300 Sight Range 16 Terrain Scan Range 16 Terrain Scan Density 10 Evasion (%) 40 Recoil Reduction 2 Item Schematics ----------------- None Robot Schematics ------------------ None Fabricated ------------ Nothing Repaired ---------- Imp. Treads | 55% | -10/Materials Alien Tech Used ----------------- None Achievements -------------- Dramatic Entrance Challenges ------------ None Game ------ Seed ExplosiveWarlordNeutralizer Manual? 0 Play Time 00:18:48 Cumulative 4.0 hours Start 2025.06.01 @ 13:56:38 End 2025.06.01 @ 14:14:56 Sessions 1 Manual Loads 0 Difficulty Rogue Special Mode None Game No. 7 Rogue 7 Adventurer 0 Explorer 0 Win Type - Total 0 Types 0/0/0/0/0/0/0/0/0/0 Lore% 15 Gallery% 6 Achievement% 22 Wizard Run 0 Options --------- Layout 1 ASCII 0 Keyboard 0 Movement Numpad Keybinds 0 Fullscreen 2 Font 24/Smallcaps Map View 50x35 Zoom Use 0% Tactical HUD 1 Map Filters NONE Filters NONE Steam 1 RUN: 3e023404-032f-48d2-8511-d550d86b4282